bitfinex/quotes_BTCUSD_20250718
["timestamp","ask_amount","ask_price","bid_price","bid_amount"]
[1752804099279,1.37000478,120310.0,120300.0,1e-08]
[1752804099487,0.86862792,120310.0,120300.0,1e-08]
[1752804099697,1.36497933,120310.0,120300.0,1e-08]
[1752804100120,1.35715933,120310.0,120300.0,1e-08]
[1752804100324,1.49563933,120310.0,120300.0,0.03210001]
[1752804100539,1.49563933,120310.0,120300.0,0.01580001]
[1752804100778,1.49563933,120310.0,120300.0,1e-08]
[1752804102671,1.49563933,120310.0,120300.0,0.01640001]
[1752804102873,0.99926247,120310.0,120300.0,0.01640001]
[1752804103076,1.49563933,120310.0,120300.0,0.01640001]
[1752804103802,0.99926247,120310.0,120300.0,0.01640001]
[1752804104010,1.01210933,120310.0,120300.0,0.03380001]
[1752804104179,0.63967162,120310.0,120300.0,0.03380001]
[1752804104384,0.99756848,120310.0,120300.0,0.03380001]
[1752804104541,1.49058933,120310.0,120300.0,0.03380001]
[1752804105243,1.35210933,120310.0,120300.0,0.03380001]
[1752804105446,1.49058933,120310.0,120300.0,0.03380001]
[1752804105657,0.99421247,120310.0,120300.0,0.03676001]
[1752804105876,1.49058933,120310.0,120300.0,0.03676001]
[1752804106071,0.51573247,120310.0,120300.0,0.03676001]
[1752804106274,0.65421247,120310.0,120300.0,0.03676001]
[1752804107565,0.41568134,120310.0,120300.0,0.03676001]
[1752804107719,0.54691062,120310.0,120300.0,0.21132352]
[1752804107924,0.54691062,120310.0,120300.0,0.72432499]
[1752804107925,0.05819549,120310.0,120300.0,0.72432499]
[1752804108135,0.18111298,120310.0,120300.0,0.73263705]
[1752804108334,0.16911277,120310.0,120300.0,0.73263705]
[1752804108570,0.17742407,120310.0,120300.0,0.78982422]
[1752804108998,0.17742407,120310.0,120300.0,0.73263705]
[1752804109210,0.22184466,120310.0,120300.0,0.22794813]
[1752804109412,0.22553343,120310.0,120300.0,0.22794813]
[1752804109649,0.36397343,120310.0,120300.0,0.22794813]
[1752804109848,0.35197343,120310.0,120300.0,0.72432499]
[1752804110727,0.33797343,120310.0,120300.0,0.72432499]
[1752804110919,0.35297343,120310.0,120300.0,0.72532499]
[1752804111177,0.33797343,120310.0,120300.0,0.72432499]
[1752804111396,0.34397343,120310.0,120300.0,0.72432499]
[1752804111605,0.18473621,120310.0,120300.0,0.73363705]
[1752804111805,0.17638442,120310.0,120300.0,0.23726019]
[1752804112014,0.18469614,120310.0,120300.0,0.73363705]
[1752804112420,0.05460793,120310.0,120300.0,0.73363705]
[1752804112602,0.3509342,120310.0,120300.0,0.72532499]
[1752804112829,0.16807333,120310.0,120300.0,0.72532499]
[1752804113102,0.18469635,120310.0,120300.0,0.73363705]
[1752804113756,0.35924543,120310.0,120300.0,0.73363705]
[1752804113912,0.35924543,120310.0,120300.0,0.23726019]
[1752804114123,0.35924543,120310.0,120300.0,0.73363705]
[1752804114313,0.19300821,120310.0,120300.0,0.73363705]
[1752804114514,0.35924543,120310.0,120300.0,0.73363705]
[1752804114938,0.35093406,120310.0,120300.0,0.72532513]
[1752804115421,0.35093406,120310.0,120300.0,0.73363733]
[1752804116370,0.17638498,120310.0,120300.0,0.74194939]
[1752804116518,0.17638498,120310.0,120300.0,0.24557253]
[1752804116719,0.16807326,120310.0,120300.0,0.74194939]
[1752804116928,0.1763847,120310.0,120300.0,0.74194939]
[1752804118213,0.0379847,120310.0,120300.0,0.74194939]
[1752804118427,0.01305003,120310.0,120300.0,1.16745967]
[1752804118790,0.01305003,120310.0,120300.0,1.30577967]
[1752804118993,0.01305003,120310.0,120300.0,1.16745967]
[1752804119203,5.003e-05,120310.0,120300.0,1.30477967]
[1752804119370,5.003e-05,120310.0,120300.0,1.16645967]
[1752804119823,5.003e-05,120310.0,120300.0,1.30477967]
[1752804120611,0.00205003,120310.0,120300.0,0.81240281]
[1752804120810,0.00205003,120310.0,120300.0,1.30877967]
[1752804122032,0.00205003,120310.0,120300.0,1.17045967]
[1752804122230,0.01036133,120310.0,120300.0,0.64914621]
[1752804122414,0.01036133,120310.0,120300.0,1.06001237]
[1752804122415,0.02698442,120310.0,120300.0,1.06001237]
[1752804122778,0.02698428,120310.0,120300.0,1.06832457]
[1752804122980,0.03529593,120310.0,120300.0,1.06832457]
[1752804123160,0.01867277,120310.0,120300.0,1.06832457]
[1752804123304,0.01036133,120310.0,120300.0,1.06832457]
[1752804123510,0.0186727,120310.0,120300.0,1.06832457]
[1752804124042,0.02698428,120310.0,120300.0,1.06832457]
[1752804124668,0.0186727,120310.0,120300.0,1.06832457]
[1752804124841,0.01867263,120310.0,120300.0,1.06832457]
[1752804125069,0.02698407,120310.0,120300.0,0.57194771]
[1752804125401,0.01867263,120310.0,120300.0,1.06832457]
[1752804125700,0.01867256,120310.0,120300.0,1.06832457]
[1752804125941,0.02698407,120310.0,120300.0,0.57194771]
[1752804126320,0.01036126,120310.0,120300.0,1.06832457]
[1752804126747,0.00205003,120310.0,120300.0,0.57194771]
[1752804126941,0.01036126,120310.0,120300.0,1.06832457]
[1752804127324,0.00205003,120310.0,120300.0,1.06832457]
[1752804127731,0.01036133,120310.0,120300.0,0.57194771]
[1752804127949,0.01036133,120310.0,120300.0,1.06832457]
[1752804129137,0.01867277,120310.0,120300.0,1.06832457]
[1752804129378,0.02698435,120310.0,120300.0,1.06832457]
[1752804129783,0.01867277,120310.0,120300.0,1.06832457]
[1752804129993,0.00205003,120310.0,120300.0,1.23959447]
[1752804130173,0.00205003,120310.0,120300.0,1.15383485]
[1752804130374,0.00205003,120310.0,120300.0,1.29203485]
[1752804132100,0.00205003,120310.0,120300.0,1.15383485]
[1752804132355,0.00205003,120310.0,120300.0,0.79565799]
[1752804132562,0.00205003,120310.0,120300.0,1.29203485]
[1752804133124,0.00205003,120310.0,120300.0,0.79565799]
[1752804133339,0.00205003,120310.0,120300.0,1.29203485]
[1752804133931,0.00205003,120310.0,120300.0,0.79565799]
[1752804134324,0.00205003,120310.0,120300.0,1.29203485]
[1752804135613,0.00205003,120310.0,120300.0,1.15383485]
[1752804135849,0.00205003,120310.0,120300.0,1.29199485]
[1752804139344,0.00205003,120310.0,120300.0,0.79561799]
[1752804139553,0.00205003,120310.0,120300.0,1.29199485]
[1752804139948,0.00205003,120310.0,120300.0,0.65745799]
[1752804140163,0.00205003,120310.0,120300.0,1.29195485]
[1752804141258,0.00205003,120310.0,120300.0,0.79557799]
[1752804141474,0.00205003,120310.0,120300.0,1.29195485]
[1752804143969,0.00205003,120310.0,120300.0,1.29191485]
[1752804146501,0.00205003,120310.0,120300.0,1.29187485]
[1752804147243,0.00205003,120310.0,120300.0,0.79549799]
[1752804147451,0.00205003,120310.0,120300.0,1.29187485]
[1752804147699,0.00205003,120310.0,120300.0,1.15383485]
[1752804147918,0.00205003,120310.0,120300.0,1.29187485]
[1752804148124,0.00205003,120310.0,120300.0,1.15383485]
[1752804148336,0.00205003,120310.0,120300.0,1.29187485]
[1752804148551,0.00205003,120310.0,120300.0,1.29183485]
[1752804148808,0.00205003,120310.0,120300.0,1.15383485]
[1752804149066,0.00205003,120310.0,120300.0,1.37759447]
[1752804149287,0.00205003,120310.0,120300.0,0.00400001]
[1752804149288,0.18988048,120310.0,120300.0,0.00400001]
[1752804150164,0.20588048,120310.0,120300.0,0.00400001]
[1752804150627,0.22118048,120310.0,120300.0,0.00400001]
[1752804150854,1.05755734,120310.0,120300.0,0.00400001]
[1752804151072,0.72104133,120310.0,120300.0,0.00400001]
[1752804151563,1.21749819,120310.0,120300.0,0.00400001]
[1752804151969,0.72112133,120310.0,120300.0,0.00400001]
[1752804152176,0.57572133,120310.0,120300.0,0.00400001]
[1752804152385,1.21745819,120310.0,120300.0,0.00400001]
[1752804152605,0.57572133,120310.0,120300.0,0.00400001]
[1752804152820,0.18788048,120310.0,120300.0,0.6626279]
[1752804153043,0.33920048,120310.0,120300.0,0.49737687]
[1752804153259,0.33622048,120310.0,120300.0,0.18489593]
[1752804153476,0.19090048,120310.0,120300.0,0.18489593]
[1752804153687,0.34322048,120310.0,120300.0,0.00302001]
[1752804153872,0.32484897,120310.0,120300.0,1e-08]
[1752804154122,0.32584897,120310.0,120300.0,0.49737687]
[1752804154343,0.32378897,120310.0,120300.0,0.53299687]
[1752804154560,0.32378897,120310.0,120300.0,0.50139687]
[1752804154784,0.00205003,120310.0,120300.0,0.72418471]
[1752804155003,0.00205003,120310.0,120300.0,0.87232471]
[1752804155280,0.01036126,120310.0,120300.0,0.23082785]
[1752804155541,0.02698407,120310.0,120300.0,0.87228471]
[1752804155742,0.026984,120310.0,120300.0,0.86922471]
[1752804155949,0.01036126,120310.0,120300.0,0.86822471]
[1752804156151,0.00836126,120310.0,120300.0,0.72118471]
[1752804156362,0.00836126,120310.0,120300.0,0.87122471]
[1752804156363,0.01767256,120310.0,120300.0,0.87122471]
[1752804156572,0.01136126,120310.0,120300.0,0.87122471]
[1752804156787,0.00305003,120310.0,120300.0,0.81169499]
[1752804156989,0.00305003,120310.0,120300.0,0.81471499]
[1752804157202,0.00305003,120310.0,120300.0,1.04531461]
[1752804157416,0.00305003,120310.0,120300.0,0.81471499]
[1752804157855,0.00305003,120310.0,120300.0,0.95955499]
[1752804158496,0.00305003,120310.0,120300.0,0.81471499]
[1752804158699,0.00305003,120310.0,120300.0,0.95951499]
[1752804158903,0.00305003,120310.0,120300.0,0.95931499]
[1752804159086,0.00305003,120310.0,120300.0,0.81471499]
[1752804159246,0.00305003,120310.0,120300.0,0.95931499]
[1752804161163,0.00305003,120310.0,120300.0,0.81471499]
[1752804161390,0.00305003,120310.0,120300.0,0.46265813]
[1752804161617,0.00305003,120310.0,120300.0,0.95903499]
[1752804162083,0.00305003,120310.0,120300.0,0.81471499]
[1752804162308,0.00305003,120310.0,120300.0,0.46249813]
[1752804162553,0.00305003,120310.0,120300.0,0.95887499]
[1752804163289,0.00305003,120310.0,120300.0,0.95879499]
[1752804165307,0.00305003,120310.0,120300.0,1.03851522]
[1752804165531,0.00305003,120310.0,120300.0,0.95879499]
[1752804166087,0.00305003,120310.0,120300.0,0.95851499]
[1752804167651,0.00305003,120310.0,120300.0,0.31833813]
[1752804167864,0.00305003,120310.0,120300.0,0.95839499]
[1752804168744,0.00305003,120310.0,120300.0,0.81471499]
[1752804168972,0.00305003,120310.0,120300.0,0.95799499]
[1752804169264,0.00305003,120310.0,120300.0,0.98344037]
[1752804169862,0.00305003,120310.0,120300.0,0.84016037]
[1752804170083,0.00305003,120310.0,120300.0,0.98328037]
[1752804170644,0.00305003,120310.0,120300.0,0.48690351]
[1752804170794,0.00305003,120310.0,120300.0,0.98328037]
[1752804172425,0.00305003,120310.0,120300.0,0.48690351]
[1752804172636,0.00305003,120310.0,120300.0,0.98288037]
[1752804173541,0.00305003,120310.0,120300.0,0.48638351]
[1752804173704,0.00305003,120310.0,120300.0,0.98276037]
[1752804174548,0.00305003,120310.0,120300.0,0.98264037]
[1752804177592,0.00305003,120310.0,120300.0,0.98224037]
[1752804177944,0.00820003,120310.0,120300.0,0.28169813]
[1752804178108,0.00820003,120310.0,120300.0,0.00500001]
[1752804178109,0.19106048,120310.0,120300.0,0.00500001]
[1752804178340,0.28744777,120310.0,120300.0,0.00500001]
[1752804178503,0.78382463,120310.0,120300.0,0.00500001]
[1752804178919,0.94040548,120310.0,120300.0,0.00500001]
[1752804179129,0.79836548,120310.0,120300.0,0.00500001]
[1752804179335,0.94036548,120310.0,120300.0,0.00500001]
[1752804179550,1.28036548,120310.0,120300.0,0.00500001]
[1752804179761,0.78398862,120310.0,120300.0,0.00500001]
[1752804179982,0.78298862,120310.0,120300.0,0.00300001]
[1752804180232,0.21074876,120310.0,120300.0,0.68025251]
[1752804180456,0.19837171,120310.0,120300.0,0.68225251]
[1752804180690,0.00720003,120310.0,120300.0,0.83143308]
[1752804180889,0.00407003,120310.0,120300.0,0.83143308]
[1752804181109,0.00720003,120310.0,120300.0,0.77822485]
[1752804181308,0.01551133,120310.0,120300.0,0.77607485]
[1752804181525,0.01551133,120310.0,120300.0,0.27969799]
[1752804181780,0.02382277,120310.0,120300.0,0.77607485]
[1752804182839,0.04044607,120310.0,120300.0,0.77607485]
[1752804182958,0.04044607,120310.0,120300.0,0.27969799]
[1752804183175,0.03213435,120310.0,120300.0,0.77607485]
[1752804183385,0.02382277,120310.0,120300.0,0.77607485]
[1752804184128,0.03213435,120310.0,120300.0,0.77607485]
[1752804184329,0.040446,120310.0,120300.0,0.77607485]
[1752804184570,0.03213435,120310.0,120300.0,0.77607485]
[1752804184735,0.040446,120310.0,120300.0,0.77607485]
[1752804184937,0.03213428,120310.0,120300.0,0.77607485]
[1752804185597,0.02382277,120310.0,120300.0,0.77607485]
[1752804185978,0.03213435,120310.0,120300.0,0.77607485]
[1752804186180,0.04044607,120310.0,120300.0,0.77607485]
[1752804186583,0.03213435,120310.0,120300.0,0.77607485]
[1752804186838,0.02382277,120310.0,120300.0,0.77607485]
[1752804186979,0.0238227,120310.0,120300.0,0.77607485]
[1752804187190,0.01551133,120310.0,120300.0,0.77607485]
[1752804187377,0.01551133,120310.0,120300.0,0.27969799]
[1752804187578,0.01551133,120310.0,120300.0,0.77607485]
[1752804188037,0.02382277,120310.0,120300.0,0.77607485]
[1752804188252,0.01551133,120310.0,120300.0,0.77607485]
[1752804188859,0.02382277,120310.0,120300.0,0.77607485]
[1752804189011,0.01551133,120310.0,120300.0,0.77607485]
[1752804189852,0.02382277,120310.0,120300.0,0.27969799]
[1752804190061,0.02382277,120310.0,120300.0,0.77607485]
[1752804190861,0.01551133,120310.0,120300.0,0.77607485]
[1752804191076,0.01551126,120310.0,120300.0,0.77607485]
[1752804191296,0.0238227,120310.0,120300.0,0.27969799]
[1752804191515,0.01551126,120310.0,120300.0,0.77607485]
[1752804192163,0.02382256,120310.0,120300.0,0.77607485]
[1752804192375,0.01551126,120310.0,120300.0,0.77607485]
[1752804192584,0.01551126,120310.0,120300.0,0.77822485]
[1752804192791,0.01238126,120310.0,120300.0,0.77822485]
[1752804192996,0.02069263,120310.0,120300.0,0.77822485]
[1752804193258,0.02382263,120310.0,120300.0,0.77822485]
[1752804193474,0.00205003,120310.0,120300.0,0.95319485]
[1752804193884,0.00205003,120310.0,120300.0,0.81231485]
[1752804194263,0.00105003,120310.0,120300.0,0.95211485]
[1752804194475,0.00205003,120310.0,120300.0,0.95311485]
[1752804195410,0.00105003,120310.0,120300.0,0.95111485]
[1752804196071,0.00205003,120310.0,120300.0,0.95511485]
[1752804198666,0.00205003,120310.0,120300.0,0.95459485]
[1752804203454,0.00205003,120310.0,120300.0,0.81431485]
[1752804203675,0.00205003,120310.0,120300.0,0.95407485]
[1752804205442,0.00205003,120310.0,120300.0,0.8103081]
[1752804205669,0.00205003,120310.0,120300.0,0.9467581]
[1752804205903,0.12984227,120310.0,120300.0,0.25676131]
[1752804206104,0.29607949,120310.0,120300.0,0.6759403]
[1752804206305,0.12215336,120310.0,120300.0,0.6925647]
[1752804206517,0.10675336,120310.0,120300.0,0.19618784]
[1752804206725,0.11506522,120310.0,120300.0,0.19618784]
[1752804206912,0.28130244,120310.0,120300.0,0.6925647]
[1752804207105,0.11506522,120310.0,120300.0,0.6925647]
[1752804207345,0.11506522,120310.0,120300.0,0.2044999]
[1752804207549,0.27299121,120310.0,120300.0,0.68425257]
[1752804207777,0.26467977,120310.0,120300.0,0.6759403]
[1752804207983,0.19829248,120310.0,120300.0,0.6842525]
[1752804208211,0.23079248,120310.0,120300.0,0.6759403]
[1752804208517,0.21416911,120310.0,120300.0,0.005]
[1752804208746,0.77693326,120310.0,120300.0,0.005]
[1752804209189,0.91625326,120310.0,120300.0,0.005]
[1752804210147,0.28934492,120310.0,120300.0,0.005]
[1752804210372,0.4197964,120310.0,120300.0,0.005]
[1752804210591,0.77693326,120310.0,120300.0,0.005]
[1752804210807,0.4197564,120310.0,120300.0,0.005]
[1752804211028,0.35336911,120310.0,120300.0,0.005]
[1752804212894,0.3623734,120310.0,120300.0,0.005]
[1752804213735,0.35336911,120310.0,120300.0,0.005]
[1752804214367,0.35304911,120310.0,120300.0,0.005]
[1752804215277,0.35292911,120310.0,120300.0,0.005]
[1752804216770,0.85827649,120310.0,120300.0,0.005]
[1752804216970,0.84930597,120310.0,120300.0,0.005]
[1752804217473,0.71054597,120310.0,120300.0,0.005]
[1752804217679,1.1505971,120310.0,120300.0,0.005]
[1752804217888,1.2893971,120310.0,120300.0,0.005]
[1752804218297,1.1505971,120310.0,120300.0,0.005]
[1752804218507,1.2894371,120310.0,120300.0,0.005]
[1752804218744,1.29728483,120310.0,120300.0,0.001]
[1752804218971,0.17456344,120300.0,120290.0,0.0004]
[1752804219191,0.72802846,120300.0,120290.0,0.0004]
[1752804219633,0.2316516,120300.0,120290.0,0.0004]
[1752804219845,0.86682846,120300.0,120290.0,0.0004]
[1752804220070,0.95233874,120300.0,120290.0,0.0004]
[1752804220283,0.81453874,120300.0,120290.0,0.0014]
[1752804220456,0.96787959,120300.0,120290.0,0.0014]
[1752804220851,1.17966659,120300.0,120290.0,0.0014]
[1752804221397,1.31946659,120300.0,120290.0,0.0024]
[1752804222459,1.34338182,120300.0,120290.0,0.0024]
[1752804222671,1.20458182,120300.0,120290.0,0.0024]
[1752804222883,1.34338182,120300.0,120290.0,0.0024]
[1752804223112,1.34338182,120300.0,120290.0,0.0014]
[1752804223113,1.88975868,120300.0,120290.0,0.0014]
[1752804223328,1.39238182,120300.0,120290.0,0.0014]
[1752804223549,1.40438182,120300.0,120290.0,0.0014]
[1752804224480,1.40338182,120300.0,120290.0,0.0004]
[1752804224686,1.37946659,120300.0,120290.0,0.0004]
[1752804225123,1.39446659,120300.0,120290.0,0.0014]
[1752804225589,1.96475868,120300.0,120290.0,1e-08]
[1752804226717,1.44446659,120300.0,120290.0,1e-08]
[1752804226960,1.44506659,120300.0,120290.0,1e-08]
[1752804227680,1.30566659,120300.0,120290.0,1e-08]
[1752804227897,1.39506659,120300.0,120290.0,1e-08]
[1752804228112,1.25566659,120300.0,120290.0,1e-08]
[1752804228329,1.44510659,120300.0,120290.0,1e-08]
[1752804228744,0.89872973,120300.0,120290.0,1e-08]
[1752804228960,1.25566659,120300.0,120290.0,1e-08]
[1752804229183,1.39510659,120300.0,120290.0,1e-08]
[1752804229387,1.44510659,120300.0,120290.0,1e-08]
[1752804230980,1.39510659,120300.0,120290.0,1e-08]
[1752804231406,1.44510659,120300.0,120290.0,1e-08]
[1752804232204,0.94872973,120300.0,120290.0,1e-08]
[1752804232412,1.44510659,120300.0,120290.0,1e-08]
[1752804233408,1.41994048,120300.0,120290.0,1e-08]
[1752804233610,1.46994048,120300.0,120290.0,1e-08]
[1752804233812,1.96631734,120300.0,120290.0,1e-08]
[1752804234030,0.5608188,120290.0,120280.0,1e-08]
[1752804234216,1.6411328,120290.0,120280.0,1e-08]
[1752804234544,1.6441328,120290.0,120280.0,1e-08]
[1752804234753,1.6547198,120290.0,120280.0,1e-08]
[1752804235086,1.6687198,120290.0,120280.0,1e-08]
[1752804235311,0.70244404,120290.0,120280.0,1e-08]
[1752804237794,0.84144404,120290.0,120280.0,1e-08]
[1752804240400,0.82596608,120290.0,120280.0,1e-08]
[1752804240722,0.84145597,120290.0,120280.0,1e-08]
[1752804241642,0.84133597,120290.0,120280.0,1e-08]
[1752804243405,0.84135256,120290.0,120280.0,1e-08]
[1752804244810,0.51460698,120270.0,120260.0,0.034]
[1752804245170,0.77109459,120270.0,120260.0,0.03604]
[1752804245379,1.26747145,120270.0,120260.0,0.03604]
[1752804245588,1.29543945,120270.0,120260.0,0.03604]
[1752804245799,0.79906259,120270.0,120260.0,0.034]
[1752804245955,1.29543945,120270.0,120260.0,0.034]
[1752804246160,1.30509228,120270.0,120260.0,0.035]
[1752804246848,1.30509228,120270.0,120260.0,0.0195]
[1752804247032,1.30509228,120270.0,120260.0,0.0044]
[1752804247273,1.18721228,120270.0,120260.0,0.0044]
[1752804247409,1.32609228,120270.0,120260.0,0.0044]
[1752804247877,1.31109228,120270.0,120260.0,0.0044]
[1752804248108,1.51073228,120270.0,120260.0,0.0044]
[1752804248727,1.37185228,120270.0,120260.0,0.0044]
[1752804248950,1.01285262,120270.0,120260.0,0.0044]
[1752804249188,1.54173228,120270.0,120260.0,0.0044]
[1752804249418,1.05804201,120260.0,120250.0,0.0034]
[1752804249638,1.16110877,120260.0,120250.0,0.0034]
[1752804249864,1.30298877,120260.0,120250.0,0.0034]
[1752804250299,1.16410877,120260.0,120250.0,0.0034]
[1752804250515,1.30298877,120260.0,120250.0,0.0034]
[1752804250724,1.21410877,120260.0,120250.0,1e-08]
[1752804250929,1.38103531,120260.0,120250.0,1e-08]
[1752804251131,1.47530543,120260.0,120250.0,1e-08]
[1752804251352,1.50505185,120260.0,120250.0,1e-08]
[1752804251561,1.51705185,120260.0,120250.0,1e-08]
[1752804251773,1.02217219,120260.0,120250.0,1e-08]
[1752804251995,1.51705185,120260.0,120250.0,1e-08]
[1752804252461,1.38917185,120260.0,120250.0,1e-08]
[1752804252683,1.52804824,120260.0,120250.0,1e-08]
[1752804253413,1.52222066,120260.0,120250.0,1e-08]
[1752804254306,0.52298212,120230.0,120220.0,0.0034]
[1752804254594,1.27734939,120230.0,120220.0,0.0034]
[1752804254800,1.37692482,120230.0,120220.0,0.0034]
[1752804255024,0.87904516,120230.0,120220.0,0.0034]
[1752804255259,1.37692482,120230.0,120220.0,0.0034]
[1752804255488,1.43750182,120230.0,120220.0,0.0034]
[1752804255712,1.43750182,120230.0,120220.0,1e-08]
[1752804255713,0.93962216,120230.0,120220.0,1e-08]
[1752804255948,1.43750182,120230.0,120220.0,1e-08]
[1752804256439,0.68089221,120210.0,120200.0,1e-08]
[1752804256662,1.00440425,120210.0,120200.0,0.0001246]
[1752804256880,1.22570878,120210.0,120200.0,1e-08]
[1752804257096,1.74112929,120210.0,120200.0,1e-08]
[1752804257314,0.77385796,120210.0,120200.0,1e-08]
[1752804257531,0.77385796,120210.0,120180.0,1e-08]
[1752804257532,0.18304302,120190.0,120180.0,1e-08]
[1752804257764,0.92286944,120190.0,120180.0,1e-08]
[1752804258004,1.01088751,120190.0,120180.0,1e-08]
[1752804258245,1.02542836,120190.0,120180.0,1e-08]
[1752804259227,0.89254836,120190.0,120180.0,1e-08]
[1752804259447,0.5335487,120190.0,120180.0,1e-08]
[1752804259705,0.89254836,120190.0,120180.0,1e-08]
[1752804259926,1.03142836,120190.0,120180.0,1e-08]
[1752804260378,0.89854836,120190.0,120180.0,1e-08]
[1752804260846,1.03158836,120190.0,120180.0,1e-08]
[1752804261105,0.3946687,120190.0,120180.0,1e-08]
[1752804261327,0.91464836,120190.0,120180.0,1e-08]
[1752804261547,0.92317017,120190.0,120180.0,1e-08]
[1752804261771,1.42104983,120190.0,120180.0,1e-08]
[1752804261982,1.43404983,120190.0,120180.0,1e-08]
[1752804262238,0.7697687,120190.0,120180.0,1e-08]
[1752804262480,1.5938287,120190.0,120180.0,1e-08]
[1752804262723,1.95154836,120190.0,120180.0,1e-08]
[1752804262968,1.6503887,120190.0,120180.0,0.00206001]
[1752804263204,1.6503887,120190.0,120180.0,0.01796001]
[1752804263205,2.31482983,120190.0,120180.0,0.01796001]
[1752804263435,1.58878836,120190.0,120180.0,0.03346001]
[1752804263695,0.39407785,120190.0,120180.0,0.03641001]
[1752804263941,0.53463785,120190.0,120180.0,0.03641001]
[1752804264159,0.39407785,120190.0,120180.0,0.03641001]
[1752804264586,1.03247751,120190.0,120180.0,0.03641001]
[1752804264795,1.01947751,120190.0,120180.0,0.03641001]
[1752804265053,1.01947751,120190.0,120180.0,0.00206001]
[1752804265054,1.24759836,120190.0,120180.0,0.00206001]
[1752804265257,1.23866836,120190.0,120180.0,1e-08]
[1752804266152,1.37938836,120190.0,120180.0,1e-08]
[1752804266374,1.37942836,120190.0,120180.0,1e-08]
[1752804266583,1.39042836,120190.0,120180.0,1e-08]
[1752804266792,0.8925487,120190.0,120180.0,1e-08]
[1752804266999,1.37954151,120190.0,120180.0,1e-08]
[1752804267250,1.36854151,120190.0,120180.0,1e-08]
[1752804267517,0.8825487,120190.0,120180.0,1e-08]
[1752804267769,1.36954151,120190.0,120180.0,1e-08]
[1752804268225,1.38554151,120190.0,120180.0,1e-08]
[1752804268436,1.24478151,120190.0,120180.0,1e-08]
[1752804268611,1.38614151,120190.0,120180.0,1e-08]
[1752804268824,1.41112851,120190.0,120180.0,0.03416001]
[1752804269034,0.42306485,120190.0,120180.0,0.03416001]
[1752804269204,0.54903837,120190.0,120180.0,0.03711001]
[1752804269409,0.56454485,120190.0,120180.0,0.03711001]
[1752804269839,0.56458485,120190.0,120180.0,0.03711001]
[1752804270073,0.47907457,120190.0,120180.0,0.03711001]
[1752804270249,0.46356809,120190.0,120180.0,0.03711001]
[1752804270678,0.42258109,120190.0,120180.0,0.03711001]
[1752804270879,0.43808757,120190.0,120180.0,0.03711001]
[1752804271099,0.45308757,120190.0,120180.0,0.03711001]
[1752804271514,0.45304757,120190.0,120180.0,0.03711001]
[1752804271750,0.42446109,120190.0,120180.0,0.03711001]
[1752804271963,0.42442109,120190.0,120180.0,0.05914828]
[1752804272180,0.29506109,120190.0,120180.0,0.05914828]
[1752804272397,0.43642109,120190.0,120180.0,0.03711001]
[1752804272624,0.29506109,120190.0,120180.0,0.21184776]
[1752804272840,0.44474118,120190.0,120180.0,0.22016854]
[1752804273059,0.27001748,120190.0,120180.0,0.23680947]
[1752804273274,0.14529759,120190.0,120180.0,0.23680947]
[1752804273482,0.26629743,120190.0,120180.0,0.23680947]
[1752804273722,0.23333807,120190.0,120180.0,0.23780947]
[1752804273934,0.15663967,120190.0,120180.0,0.23780947]
[1752804274159,0.01531967,120190.0,120180.0,0.23780947]
[1752804274372,0.15655967,120190.0,120180.0,0.23780947]
[1752804274576,0.16555967,120190.0,120180.0,0.23880947]
[1752804275012,0.17387927,120190.0,120180.0,0.23880947]
[1752804275229,0.18219922,120190.0,120180.0,0.23880947]
[1752804275449,0.16555953,120190.0,120180.0,0.25523713]
[1752804275668,0.16555953,120190.0,120180.0,0.23880947]
[1752804276501,0.15724,120190.0,120180.0,0.23880947]
[1752804276710,0.016,120190.0,120180.0,0.72580228]
[1752804276962,0.157,120190.0,120180.0,0.8115619]
[1752804277173,0.15696,120190.0,120180.0,0.8115619]
[1752804277826,0.007,120190.0,120180.0,0.8105619]
[1752804278072,0.14796,120190.0,120180.0,0.8105619]
[1752804278300,0.15096,120190.0,120180.0,0.8115619]
[1752804278510,0.14396,120190.0,120180.0,0.8105619]
[1752804278958,0.14696,120190.0,120180.0,0.8115619]
[1752804279571,0.006,120190.0,120180.0,0.8115619]
[1752804279766,0.14688,120190.0,120180.0,0.8115619]
[1752804280120,0.006,120190.0,120180.0,0.8115619]
[1752804280322,0.14656,120190.0,120180.0,0.8115619]
[1752804280533,0.14656,120190.0,120180.0,0.72580228]
[1752804280734,0.006,120190.0,120180.0,0.81131256]
[1752804280902,0.016,120190.0,120180.0,0.81131256]
[1752804281105,0.15648,120190.0,120180.0,0.81131256]
[1752804281310,0.15648,120190.0,120180.0,0.89707218]
[1752804281509,0.016,120190.0,120180.0,0.41007937]
[1752804281706,0.016,120190.0,120180.0,0.81131256]
[1752804282020,0.013,120190.0,120180.0,1.15031256]
[1752804282447,0.015,120190.0,120180.0,1.15131256]
[1752804284328,0.012,120190.0,120180.0,1.15031256]
[1752804285525,0.012,120190.0,120180.0,0.66331975]
[1752804285823,0.013,120190.0,120180.0,1.15031256]
[1752804286446,0.013,120190.0,120180.0,0.74907937]
[1752804286661,0.013,120190.0,120180.0,0.66331975]
[1752804286885,0.0213196,120190.0,120180.0,0.32331975]
[1752804287344,0.013,120190.0,120180.0,0.32331975]
[1752804287552,0.158,120190.0,120180.0,0.32331975]
[1752804287969,0.013,120190.0,120180.0,1.20013963]
[1752804288638,0.013,120190.0,120180.0,1.15031256]
[1752804289079,0.013,120190.0,120180.0,1.16144171]
[1752804289293,0.013,120190.0,120180.0,1.30624171]
[1752804289720,0.013,120190.0,120180.0,1.17598256]
[1752804289929,0.013,120190.0,120180.0,1.58086256]
[1752804290143,0.013,120190.0,120180.0,1.50640333]
[1752804290589,0.013,120190.0,120180.0,1.65104333]
[1752804291009,0.013,120190.0,120180.0,1.63934643]
[1752804293605,0.013,120190.0,120180.0,1.49470643]
[1752804293857,0.013,120190.0,120180.0,1.63890643]
[1752804294730,0.06653729,120210.0,120200.0,0.56344691]
[1752804294947,0.06653729,120210.0,120200.0,0.72565493]
[1752804295163,0.06653729,120210.0,120200.0,1.35603999]
[1752804295383,0.06653729,120210.0,120200.0,1.35922999]
[1752804295593,0.06653729,120210.0,120200.0,0.72888493]
[1752804295807,0.06653729,120210.0,120200.0,1.35922999]
[1752804296020,0.06853729,120210.0,120200.0,1.36018999]
[1752804296449,0.06853729,120210.0,120200.0,0.87376493]
[1752804296681,0.06853729,120210.0,120200.0,1.62038999]
[1752804296895,0.06853729,120210.0,120200.0,1.47650999]
[1752804297108,0.06853729,120210.0,120200.0,1.62018999]
[1752804297318,0.00215,120210.0,120200.0,1.62018999]
[1752804298840,0.00215,120210.0,120200.0,1.47650999]
[1752804299048,0.00215,120210.0,120200.0,1.61998999]
[1752804299704,0.00215,120210.0,120200.0,1.4853908]
[1752804299945,0.00215,120210.0,120200.0,1.6286308]